Cogmind - Beta 10.2 @@@ ROGUE MODE // 2020.12.19 @ 17:36:53 Player: deMangler Result: Destroyed by S-10 Pest with Light Assault Rifle Performance ------------- Evolutions (1) 500 Regions Visited (3) 600 Robots Destroyed (20) 100 Value Destroyed (410) 410 Prototype IDs (2) 40 Alien Tech Used (0) 0 Bonus (0) 0 TOTAL SCORE: 1650 Bonus ------- None Cogmind --------- Core Integrity 0/400 Matter 278/300 Energy 100/100 System Corruption 0% Temperature Cool (0) Movement Core (200) Ox3 Location -9/Materials Parts ------- > --- POWER (2) -------- (None) > --- PROPULSION (2) --- (None) > --- UTILITY (3) ------ Medium Storage Unit > --- WEAPON (2) ------- Autogun > --- INVENTORY (8) ---- (None) Peak State ------------ > --- POWER ------------ Light Ion Engine Light Ion Engine > --- PROPULSION ------- Wheel Wheel > --- UTILITY ---------- Medium Storage Unit Improved Trap Extractor > --- WEAPON ----------- Heavy Particle Cannon Light Assault Rifle > --- INVENTORY -------- Light Ion Engine Hardlight Generator Heavy Particle Cannon Improved Datajack [Rating: 14] Favorites ----------- Power Light Ion Engine Engine Light Ion Engine Propulsion Aluminum Leg Leg Aluminum Leg Wheel Wheel Utility Improved Trap Extractor Device Improved Trap Extractor Storage Medium Storage Unit Weapon Light Assault Rifle Energy Gun Medium Laser Energy Cannon Heavy Particle Cannon Ballistic Gun Light Assault Rifle Special Melee Weapon Improved Datajack Build | -11 -10 -10 -9 ------- Run | Scr Mat Min Mat Slots Evolved 2 | . . . 2 Power 1 | . . . 1 Propulsion . | . . . . Utility 1 | . . . 1 Weapon . | . . . . Parts Attached 24 | 5 . 2 17 Power 6 | 1 . . 5 Engine 6 | 1 . . 5 Core . | . . . . Reactor . | . . . . Propulsion 6 | 2 . . 4 Treads . | . . . . Leg 2 | 2 . . . Wheel 4 | . . . 4 Hover . | . . . . Flight . | . . . . Utility 4 | . . 2 2 Device 2 | . . 1 1 Storage 2 | . . 1 1 Processor . | . . . . Hackware . | . . . . Protection . | . . . . Artifact . | . . . . Weapon 8 | 2 . . 6 Energy Gun 1 | . . . 1 Energy Cannon 2 | . . . 2 Ballistic Gun 4 | 2 . . 2 Ballistic Cannon . | . . . . Launcher . | . . . . Special Weapon . | . . . . Impact Weapon . | . . . . Slashing Weapon . | . . . . Piercing Weapon . | . . . . Special Melee Weapon 1 | . . . 1 Unidentified Prototypes . | . . . . Parts Lost 20 | . . 1 19 Power 6 | . . 1 5 Propulsion 6 | . . . 6 Utility 1 | . . . 1 Weapon 7 | . . . 7 Highest Loss Streak 13 | . . 1 13 Average Slot Usage (%) 65 | . 71 76 58 Engine 9 | . 14 12 7 Leg 14 | . 28 28 5 Wheel 5 | . . . 8 Device 7 | . . 5 9 Storage 6 | . . 1 9 Energy Gun 1 | . . . 1 Energy Cannon 2 | . . . 4 Ballistic Gun 16 | . 28 28 9 Naked Turns . | . . . . Heaviest Build 24 | 6 6 17 24 Greatest Support 20 | 20 20 20 20 Greatest Overweight (x) 4 | . . . 4 Average Overweight (x) . | . . . . Largest Inventory Capacity 8 | 4 4 8 8 Average Capacity 5 | 4 4 4 7 Most Carried 7 | 3 3 4 7 Average Carried 3 | 2 3 3 4 Final Capacity 8 | 4 4 8 8 Final Carried 4 | 3 3 4 4 Class Distribution -------------------- 100% | Mutant Dominant Class ---------------- Mutant | -10/Materials Mutant | -10/Mines Mutant | -9/Materials Resources | -11 -10 -10 -9 ----------- Run | Scr Mat Min Mat Matter Collected 421 | 270 . 18 133 Remotely . | . . . . Salvage Created 502 | 49 . 54 399 Parts 37 | 1 . 1 35 Haulers Intercepted . | . . . . Recyclers Shooed . | . . . . Parts Field Recycled . | . . . . Retrieved Matter . | . . . . Parts Self-Destructed . | . . . . Prevented . | . . . . Kills | -11 -10 -10 -9 ------- Run | Scr Mat Min Mat Combat Hostiles Destroyed 17 | 1 . 1 15 Guns 10 | 1 . 1 8 Cannons 7 | . . . 7 Classes Destroyed 4 | 1 . . 3 Builder 2 | . . . 2 Watcher 1 | . . . 1 Swarmer 10 | . . . 10 Grunt 7 | 1 . 1 5 Best Kill Streak 7 | 1 . 1 7 Combat Bots Only 6 | 1 . 1 6 Max Kills in Single Turn 2 | 1 . 1 2 Gunslinging . | . . . . Exploded . | . . . . Melee . | . . . . Uniques/NPCs Destroyed . | . . . . Combat | -11 -10 -10 -9 -------- Run | Scr Mat Min Mat Damage Taken 1671 | 11 . 247 1413 Core 414 | . . 6 408 Absorbed by Shields . | . . . . Core Remaining (%) 98 | 100 . 97 . Volleys Fired 63 | 5 . 2 56 Largest 2 | 2 . 2 2 Hottest 95 | 40 . 40 95 Shots Fired 99 | 10 . 4 85 Gun 75 | 10 . 4 61 Cannon 24 | . . . 24 Launcher . | . . . . Special . | . . . . Kinetic 58 | 10 . 4 44 Thermal 41 | . . . 41 Explosive . | . . . . Electromagnetic . | . . . . Robot Hit Streak 13 | 2 . 1 13 Robot Miss Streak 4 | 1 . 2 4 Penetration Max . | . . . . Secondary Targets 1 | . . . 1 Max Gunslinging Chain 1 | . . . 1 Shots Hit Robots 58 | 4 . 1 53 Core Hits 31 | 2 . 1 28 Critical Hits 2 | . . . 2 Critical Kills 1 | . . . 1 Critical Parts Destroyed 1 | . . . 1 Melee Attacks 4 | . . . 4 Impact . | . . . . Slashing . | . . . . Piercing . | . . . . Sneak Attacks 1 | . . . 1 Combat Hostiles . | . . . . Follow-up Attacks . | . . . . Damage Inflicted 812 | 40 . 12 760 Guns 462 | 40 . 12 410 Cannons 350 | . . . 350 Explosions . | . . . . Melee . | . . . . Ramming . | . . . . Kinetic 315 | 40 . 12 263 Thermal 497 | . . . 497 Explosive . | . . . . Electromagnetic . | . . . . Impact . | . . . . Slashing . | . . . . Piercing . | . . . . Highest Corruption . | . . . . Average Corruption . | . . . . Corruption Purged . | . . . . Overload Shots . | . . . . Overflow Damage 20 | . . . 20 Projectiles 20 | . . . 20 Explosions . | . . . . Melee . | . . . . Knockbacks . | . . . . Impact . | . . . . Kinetic . | . . . . Secondary . | . . . . Self-Inflicted Damage . | . . . . Shots . | . . . . Rammed . | . . . . Targets Rammed . | . . . . Kicked . | . . . . Crushed . | . . . . Highest Temperature 394 | 6 . . 394 Average Temperature 116 | 6 . . 118 Received Heat Transfer 237 | 6 . . 231 Siege Activations . | . . . . Robots Corrupted . | . . . . Combat Hostiles . | . . . . Parts Fried . | . . . . Impact Corruptions . | . . . . Robots Melted . | . . . . Combat Hostiles . | . . . . Parts Melted 3 | . . 2 1 Heat Transferred 962 | . . . 962 Parts Sabotaged . | . . . . Parts Stolen . | . . . . Parts Stripped . | . . . . Power Chain Reactions . | . . . . Missiles Intercepted . | . . . . Alert | -11 -10 -10 -9 ------- Run | Scr Mat Min Mat Peak Influence 284 | 20 13 39 284 Initial 14 | . 13 4 14 Average 88 | 2 13 9 167 Maximum Alert Level 1 | . . . 1 Low Security (%) 70 | 100 100 100 41 Level 1 29 | . . . 58 Level 2 . | . . . . Level 3 . | . . . . Level 4 . | . . . . Level 5 . | . . . . High Security . | . . . . Max Security . | . . . . Squads Dispatched 2 | . 1 . 1 Investigation 1 | . 1 . . Extermination . | . . . . Reinforcement 1 | . . . 1 Assault . | . . . . Garrison . | . . . . Intercept . | . . . . Construction Impeded . | . . . . Haulers Reinforced . | . . . . Stealth | -11 -10 -10 -9 --------- Run | Scr Mat Min Mat Distress Signals 1 | . . . 1 Communications Jammed . | . . . . Distress Signals . | . . . . Times Spotted 30 | 1 . 4 25 Peak Tracking Total 5 | 1 . 2 5 Tactical Retreats 1 | . . . 1 Traps | -11 -10 -10 -9 ------- Run | Scr Mat Min Mat Traps Triggered 1 | . 1 . . Indirectly . | . . . . Trap Hack Attempts . | . . . . Triggered . | . . . . Disarmed . | . . . . Reprogrammed . | . . . . Reused . | . . . . Traps Extracted . | . . . . Installed . | . . . . Triggered . | . . . . Machines | -11 -10 -10 -9 ---------- Run | Scr Mat Min Mat Machines Disabled 2 | . . . 2 Max in Single Turn 1 | . . . 1 Machines Sabotaged . | . . . . Garrisons Compromised . | . . . . Overloaded Fab Kills . | . . . . Fab Network Shutdowns . | . . . . Hacking | -11 -10 -10 -9 --------- Run | Scr Mat Min Mat Machines Accessed 3 | . 1 1 1 Terminals 1 | . 1 . . Fabricators . | . . . . Repair Stations 1 | . . . 1 Recycling Units . | . . . . Scanalyzers . | . . . . Garrison Access . | . . . . Total Hacks 6 | . 1 1 4 Successful 5 | . 1 1 3 Failed 1 | . . . 1 Catastrophic . | . . . . Database Lockouts . | . . . . Manual . | . . . . Terminals 1 | . 1 . . Fabricators . | . . . . Repair Stations 4 | . . . 4 Recycling Units . | . . . . Scanalyzers . | . . . . Garrison Access . | . . . . Terminal Hacks 2 | . 1 1 . Prototype ID Bank 1 | . 1 . . Open Door 1 | . . 1 . Fabricator Hacks . | . . . . Repair Station Hacks 3 | . . . 3 Scan Component 2 | . . . 2 Repair 1 | . . . 1 Recycling Unit Hacks . | . . . . Scanalyzer . | . . . . Garrison Access Hacks . | . . . . Unauthorized Hacks . | . . . . Terminals . | . . . . Fabricators . | . . . . Repair Stations . | . . . . Recycling Units . | . . . . Scanalyzers . | . . . . Garrison Access . | . . . . Data Cores Recovered . | . . . . Used . | . . . . Hacking Detections 1 | . . . 1 Full Trace Events . | . . . . Feedback Events . | . . . . Feedback Blocked . | . . . . Robot Schematics Acquired . | . . . . Robots Built . | . . . . Matter . | . . . . Time . | . . . . Total Robot Build Rating . | . . . . Part Schematics Acquired . | . . . . Parts Built . | . . . . Matter . | . . . . Time . | . . . . Total Part Build Rating . | . . . . Parts Repaired 1 | . . . 1 Time 26 | . . . 26 Parts Recycled . | . . . . Recycled Matter . | . . . . Retrieved Matter . | . . . . Retrieved Components . | . . . . Parts Scanalyzed . | . . . . Part Schematics Acquired . | . . . . Parts Damaged . | . . . . Bothacking | -11 -10 -10 -9 ------------ Run | Scr Mat Min Mat Used RIF Installer . | . . . . Robots Hacked 1 | . . . 1 Non-combat 1 | . . . 1 Combat . | . . . . Robot Hacks Applied 1 | . . . 1 no_distress 1 | . . . 1 Relay Couplers Released . | . . . . Robots Rewired . | . . . . Allies Hacked . | . . . . Hacks Repelled . | . . . . Allies | -11 -10 -10 -9 -------- Run | Scr Mat Min Mat Total Allies . | . . . . Largest Group . | . . . . Highest-Rated Group . | . . . . Highest-Rated Ally . | . . . . Total Orders . | . . . . Ally Attacks . | . . . . Total Damage . | . . . . Kills . | . . . . Allies Corrupted . | . . . . Allies Melted . | . . . . Intel | -11 -10 -10 -9 ------- Run | Scr Mat Min Mat Robot Analysis Total . | . . . . Derelict Logs Recovered . | . . . . Drone Launches . | . . . . Drone Recoveries . | . . . . Exploration | -11 -10 -10 -9 ------------- Run | Scr Mat Min Mat Turns Passed 623 | 90 59 159 315 Spaces Moved 347 | 62 50 125 110 Core 33 | 15 . . 18 Treads . | . . . . Legs 251 | 47 50 125 29 Wheels 63 | . . . 63 Hover . | . . . . Flight . | . . . . Fastest Speed 50 | 50 120 120 80 Average Speed 113 | 103 120 120 109 Slowest Speed 250 | 120 120 120 250 Overloaded Moves . | . . . . Propulsion Burnouts . | . . . . Robots Hopped . | . . . . Cave-ins Triggered . | . . . . Exploration Rate (%) 15 | 8 10 30 14 Regions Visited 3 Branch Regions 1 Pre-discovered Areas 1 | . . 1 . Known Exits Taken . | . . . . Unknown Exits Taken 3 | 1 1 1 . Scrap Searched 1 | . . 1 . Spaces Dug . | . . . . Terrain Destroyed 8 | . . . 8 Melee . | . . . . Projectile 8 | . . . 8 AOE . | . . . . Terrain Rammed . | . . . . Walls Destroyed . | . . . . Machines Disabled . | . . . . Actions | -11 -10 -10 -9 --------- Run | Scr Mat Min Mat Total 479 | 79 49 129 222 Wait 30 | . . . 30 Move 344 | 61 49 124 110 Hop . | . . . . Pick Up 12 | 8 . 1 3 Fast Attach 12 | . . 2 10 Attach 12 | 5 . . 7 Detach 1 | . . . 1 Swap . | . . . . Drop 1 | . . . 1 Fire 63 | 5 . 2 56 Melee 4 | . . . 4 Ram . | . . . . Kick . | . . . . Crush . | . . . . Escape Stasis . | . . . . Rewire . | . . . . Trap . | . . . . Miscellaneous . | . . . . Route ------- -11/Scrapyard -10/Materials -10/Mines -9/Materials History --------- Turn | Location | Event 2 | -11/Scrapyard | Met Revision 17 68 | -11/Scrapyard | Discovered new exit (range 8) 91 | -11/Scrapyard | Entered Materials 91 | -10/Materials | Discovered new exit (range 14) 150 | -10/Materials | Entered Mines 151 | -10/Mines | Learned location of Storage (-9) 239 | -10/Mines | Met a Derelict who couldn't figure out how to use a Trap Extractor 287 | -10/Mines | Assembled infested the area 288 | -10/Mines | Discovered new exit (range 8) 292 | -10/Mines | Assisted by a Guerilla fighting off Assembled 308 | -10/Mines | Build established: Mutant 309 | -10/Mines | Entered Materials 309 | -9/Materials | Evolved 2 slots: Power x1, Utility x1 459 | -9/Materials | Lost 6 parts (1p2n3w) 501 | -9/Materials | Repaired Med. Storage Unit 552 | -9/Materials | Core integrity fell below 50% 586 | -9/Materials | Core integrity fell below 20% 624 | -9/Materials | Destroyed by S-10 Pest with Light Assault Rifle Last Messages --------------- 00578_ Acquired Wheel. 00579_ K-01 Serf collects debris. 00580_ R-06 Scavenger collects Flight Unit. 00581_ Acquired Wheel. 00581_ K-01 Serf collects debris. 00584_ R-06 Scavenger collects Lgt. Assault Rifle. 00585_ K-01 Serf collects debris. 00586_ Dropped Hardlight Generator. 00587_ K-01 Serf collects debris. 00587_ Imp. Trap Extractor destroyed. 00588_ R-06 Scavenger collects Flight Unit. 00588_ K-01 Serf collects debris. 00591_ Wheel destroyed. 00592_ Acquired 20 matter. 00593_ K-01 Serf collects debris. 00595_ Critical hit. 00595_ Lgt. Ion Engine destroyed. 00598_ Wheel destroyed. 00618_ Acquired Autogun. 00623_ S-10 Pest destroyed. Map ----- +----------------------------------------------------+ | ?????????????????????????????????????????????????? | | ?????????????????????????????????????????????????? | | ?????????????????????????????????????????????????? | | ?????????????????????????????????????????????????? | | ?????????????????????????????????????????????????? | | ?????????????????????????????????????????????????? | | ?????????????????????????????????????????????????? | | ?????????????????????????????????????????????????? | | ?????????????????????????????????????????????????? | | ?????????????????????????????????????????????????? | | ?????????????????????????????????????????????????? | | ?????????????????????????????????????????????????? | | ?????????????????????????????????????????????????? | | ?????????????????????????????????????????????????? | | ?????????????????????????????????????????????????? | | ?????????????????????????????????????????????????? | | ?????????????????????????????????????????????????? | | ??????? ????????? ????????????????????????????? | | ??????? ????????# #???????????????????????????? | | ?????? ????????# #???????????????????????????? | | ?????? ????????# #???????????????????????????? | | ??????? ????????# #???????????????????????????? | | ??????? ????????# #???????????????????????????? | | ??????? ????????# #??########?????????????????? | | ??????? #???????# #??# """ #?????????????????? | | ??????? #???????# #??#@ """ #?????????????????? | | ???????# #???????# #??# """ #?????????????????? | | ???????# #???????# #??# #?????????????????? | | ???????# #???????# #??# #?????????????????? | | ???????# #??#????# #??# % #?????????????????? | | ######## ######### ######s###########??????????? | | %! % "T" %=[ !!#??????????? | | ! % %% ! !!#??????????? | | % !!#??????????? | | #############/##### ! !#??????????? | | ??????????# ## =="" """ #??????????? | | ??????????# ## """ """ ]]#??????????? | | ??????????# ## """ """ #####??????????? | | ??????????# " " ## #??????????? | | ??????????# "R" ## #??????????? | | ??????????# """ ## #??????????? | | ??????????######### ##########+####??????????? | | ??????????????????# #??????? ????????????? | | ??????????????????# ????? """ "??????????? | | ??????????????????#[[====???# """ """????????? | | ??????????????????#[[====#??# """ """ ???????? | | ??????????????????########??# "T" """ """ ???????? | | ????????????????????????????# """ ????????? | | ????????????????????????????#######?????#????????? | | | +----------------------------------------------------+ Best States ------------- Heat Dissipation 28 Energy Generation 15 Energy Capacity 150 Matter Stores 300 Matter Capacity 300 Sight Range 16 Terrain Scan Density 10 Evasion (%) 50 Item Schematics ----------------- None Robot Schematics ------------------ None Fabricated ------------ Nothing Alien Tech Used ----------------- None Achievements -------------- Part-time Mechanic Challenges ------------ None Game ------ Seed HugeColdKinecellerator Manual? 0 Play Time 00:41:55 Cumulative 5.1 hours Start 2020.12.17 @ 20:45:06 End 2020.12.19 @ 17:36:53 Sessions 3 Manual Loads 0 Difficulty Rogue Special Mode None Game No. 3 Rogue 3 Adventurer 0 Explorer 0 Win Type - Total 0 Types 0/0/0/0/0/0/0/0/0 Lore% 1 Gallery% 4 Achievement% 3 Wizard Run 0 Options --------- ASCII 1 Keyboard 1 Movement Vi Keybinds 0 Fullscreen 0 Font 16/Terminus Map View 76x50 Tactical HUD 1 Map Filters NONE Filters NONE Steam 1 RUN: f2bcc4a8-d1aa-4156-a062-f768edfb47db